Cogmind - Beta 15 @@@ ROGUE MODE // 2025.10.05 @ 22:30:28 Player: microsand Result: Destroyed by Y-45 Defender with Heavy Assault Rifle Performance ------------- Evolutions (2) 1000 Regions Visited (3) 600 Robots Destroyed (41) 205 Value Destroyed (677) 677 Prototype IDs (1) 20 Alien Tech Used (0) 0 Bonus (0) 0 TOTAL SCORE: 2502 Bonus ------- None Cogmind --------- Core Integrity 0/550 Matter 154/300 Energy 100/100 System Corruption 0% Temperature Cool (0) Movement Core (300) Ox5 Location -8/Materials Parts ------- > --- POWER (2) -------- (None) > --- PROPULSION (2) --- (None) > --- UTILITY (3) ------ Small Storage Unit Medium Storage Unit System Shield > --- WEAPON (4) ------- Particle Gun > --- INVENTORY (10) --- Light Ion Engine Aluminum Leg Aluminum Leg VSS Leg Terrain Scan Processor Melee Analysis Suite Propulsion Shielding Peak State ------------ > --- POWER ------------ Light Deuterium Engine Light Nuclear Core > --- PROPULSION ------- Aluminum Leg Carbon-fiber Leg > --- UTILITY ---------- Small Storage Unit Medium Storage Unit System Shield > --- WEAPON ----------- Particle Gun Enhanced Autogun Enhanced Autogun > --- INVENTORY -------- Light Ion Engine Aluminum Leg Aluminum Leg VSS Leg Terrain Scan Processor Melee Analysis Suite Propulsion Shielding [Rating: 26] Favorites ----------- Power Light Ion Engine Engine Light Ion Engine Power Core Light Nuclear Core Propulsion Aluminum Leg Leg Aluminum Leg Utility Small Storage Unit Device Seismic Detector Storage Small Storage Unit Hackware System Shield Protection Propulsion Shielding Weapon Medium Laser Energy Gun Medium Laser Ballistic Gun Enhanced Autogun Build | -11 -10 -9 -8 ------- Run | Yrd Mat Mat Mat Slots Evolved 4 | . . 2 2 Power 1 | . . . 1 Propulsion . | . . . . Utility 1 | . . 1 . Weapon 2 | . . 1 1 Parts Attached 25 | 7 . 6 12 Power 6 | 1 . 2 3 Engine 5 | 1 . 2 2 Core 1 | . . . 1 Reactor . | . . . . Propulsion 6 | 2 . . 4 Treads . | . . . . Leg 6 | 2 . . 4 Wheel . | . . . . Hover . | . . . . Flight . | . . . . Utility 5 | 2 . 2 1 Device 1 | 1 . . . Storage 2 | 1 . 1 . Processor . | . . . . Hackware 1 | . . . 1 Protection 1 | . . 1 . Artifact . | . . . . Weapon 8 | 2 . 2 4 Energy Gun 5 | 2 . 1 2 Energy Cannon . | . . . . Ballistic Gun 3 | . . 1 2 Ballistic Cannon . | . . . . Launcher . | . . . . Special Weapon . | . . . . Impact Weapon . | . . . . Slashing Weapon . | . . . . Piercing Weapon . | . . . . Special Melee Weapon . | . . . . Unidentified Prototypes 1 | . . . 1 Parts Lost 16 | . . 2 14 Power 5 | . . 1 4 Propulsion 3 | . . . 3 Utility 1 | . . . 1 Weapon 7 | . . 1 6 Highest Loss Streak 5 | . . 1 5 To Critical Strikes . | . . . . Average Backups 3 | 1 2 2 5 Power 1 | . 1 2 . Propulsion . | . . . 1 Utility . | . . . 3 Weapon . | . 1 . . Tool/Special . | . . . . Unused Backups 2 | . . . 2 Power . | . . . . Propulsion . | . . . . Utility 2 | . . . 2 Weapon . | . . . . Tool/Special . | . . . . Average Slot Usage (%) 92 | . 100 98 81 Engine 12 | . 14 10 12 Leg 21 | . 28 22 17 Device 9 | . 14 11 5 Storage 11 | . 14 11 11 Hackware 3 | . . . 8 Protection 4 | . . 11 . Energy Gun 19 | . 28 21 13 Ballistic Gun 8 | . . 10 10 Peak Build Rating 26 | 7 7 10 26 Average Rating 10 | 5 7 9 17 On Entrance 6 | . 7 7 10 Naked Turns . | . . . . Heaviest Build 34 | 13 13 21 34 Greatest Support 25 | 20 20 20 25 Greatest Overweight (x) 5 | . . 1 5 Average Overweight (x) . | . . . . Largest Inventory Capacity 10 | 8 8 10 10 Average Capacity 8 | 7 8 8 10 Most Carried 9 | 5 4 4 9 Average Carried 3 | 1 2 2 5 Final Capacity 10 | 8 8 10 10 Final Carried 7 | 2 4 4 7 Class Distribution -------------------- 54% | Mutant 23% | Tank 7% | Gunner 7% | Scavenger-Gunner 4% | Scavenger-Mutant Dominant Class ---------------- Mutant | -10/Materials Tank | -9/Materials Gunner | -8/Materials Resources | -11 -10 -9 -8 ----------- Run | Yrd Mat Mat Mat Matter Collected 549 | 270 . 74 205 Remotely . | . . . . Salvage Created 1358 | 355 202 284 517 Parts 83 | 29 24 14 16 Haulers Intercepted 1 | . . . 1 Recyclers Shooed . | . . . . Parts Field Recycled . | . . . . Retrieved Matter . | . . . . Parts Self-Destructed . | . . . . Prevented . | . . . . Kills | -11 -10 -9 -8 ------- Run | Yrd Mat Mat Mat Combat Hostiles Destroyed 18 | . 3 6 9 Guns 18 | . 3 6 9 Classes Destroyed 11 | 3 4 2 2 Worker 4 | 4 . . . Builder 3 | . 3 . . Tunneler 7 | 7 . . . Hauler 1 | . . . 1 Recycler 5 | 1 1 1 2 Operator 1 | . 1 . . Watcher 2 | . 1 1 . Swarmer 9 | . 3 3 3 Grunt 6 | . . 1 5 Duelist 1 | . . . 1 Sentry 2 | . . 2 . Best Kill Streak 6 | 5 6 2 4 Combat Bots Only 3 | . 3 2 3 Max Kills in Single Turn 2 | 1 2 2 1 Gunslinging 1 | . 1 . . Exploded . | . . . . Melee . | . . . . Uniques/NPCs Destroyed . | . . . . Combat | -11 -10 -9 -8 -------- Run | Yrd Mat Mat Mat Hostile Shots Fired 166 | . 21 44 101 Missed 38 | . 6 12 20 Hits 128 | . 15 32 81 Melee 4 | . . . 4 Projectile 124 | . 15 32 77 Critical Strikes 7 | . 1 2 4 Actively Blocked 1 | . . 1 . Damage Taken 2058 | . 137 403 1518 Core 709 | . 41 115 553 Absorbed by Shields . | . . . . Redirected to Shielding 21 | . . 21 . Core Remaining (%) 84 | 100 83 71 . Volleys Fired 109 | 19 16 23 51 Largest 4 | 2 2 3 4 Hottest 171 | 90 90 126 171 Shots Fired 246 | 38 32 60 116 Gun 246 | 38 32 60 116 Cannon . | . . . . Launcher . | . . . . Special . | . . . . Kinetic 80 | . . 23 57 Thermal 130 | 19 16 36 59 Explosive . | . . . . Electromagnetic 36 | 19 16 1 . Robot Hit Streak 11 | 7 5 9 11 Robot Miss Streak 5 | 2 4 2 5 Penetration Max . | . . . . Secondary Targets 3 | . 2 1 . Max Gunslinging Chain 1 | . 1 1 . Shots Hit Robots 135 | 25 18 38 54 Core Hits 61 | 13 10 15 23 Critical Kills . | . . . . Critical Parts Destroyed . | . . . . Critical Strikes 8 | 3 1 3 1 Burn 7 | 2 1 3 1 Corrupt 1 | 1 . . . Melee Attacks . | . . . . Impact . | . . . . Slashing . | . . . . Piercing . | . . . . Sneak Attacks . | . . . . Combat Hostiles . | . . . . Follow-up Attacks . | . . . . Damage Inflicted 1931 | 319 331 426 855 Guns 1816 | 319 216 426 855 Cannons . | . . . . Explosions 115 | . 115 . . Melee . | . . . . Ramming . | . . . . Kinetic 566 | . . 161 405 Thermal 1042 | 136 191 265 450 Explosive . | . . . . Electromagnetic 323 | 183 140 . . Impact . | . . . . Slashing . | . . . . Piercing . | . . . . Highest Corruption . | . . . . Average Corruption . | . . . . Corruption Purged . | . . . . Corruption Blocked . | . . . . Overload Shots . | . . . . Overflow Damage . | . . . . Projectiles . | . . . . Explosions . | . . . . Melee . | . . . . Knockbacks . | . . . . Impact . | . . . . Kinetic . | . . . . Secondary . | . . . . Self-Inflicted Damage 21 | . 21 . . Shots 1 | . 1 . . Rammed . | . . . . Targets Rammed . | . . . . Kicked . | . . . . Crushed . | . . . . Highest Temperature 929 | 120 240 325 929 Average Temperature 191 | 36 93 95 328 Received Heat Transfer 687 | . . 120 567 Effects 31 | . . . 31 Shutdowns 11 | . . . 11 Energy Bleed 3 | . . . 3 Interference 2 | . . . 2 Matter Decay 3 | . . . 3 Short Circuit 1 | . . . 1 Damage (minor) 5 | . . . 5 Damage (major) 3 | . . . 3 Damage (core) 3 | . . . 3 Siege Activations . | . . . . Martial Activations . | . . . . Shielding Activations . | . . . . Robots Disrupted . | . . . . Combat Hostiles . | . . . . Robots Corrupted . | . . . . Combat Hostiles . | . . . . Parts Fried . | . . . . Impact Corruptions . | . . . . Robots Melted . | . . . . Combat Hostiles . | . . . . Parts Melted 8 | 2 1 1 4 Heat Transferred 2997 | 555 296 962 1184 Parts Sabotaged . | . . . . Parts Stolen . | . . . . Parts Stripped . | . . . . Power Chain Reactions 2 | . 2 . . Alert | -11 -10 -9 -8 ------- Run | Yrd Mat Mat Mat Maximum Alert Level . | . . . . Low Security (%) 100 | 100 100 100 100 Level 1 . | . . . . Level 2 . | . . . . Level 3 . | . . . . Level 4 . | . . . . Level 5 . | . . . . High Security . | . . . . Max Security . | . . . . Peak Influence 98 | 15 76 81 98 Initial 6 | . . 6 . Average 17 | . 32 29 18 Influence Increases 655 | 60 133 188 274 Destroy 0b10 Robot/C 360 | . 60 120 180 Destroy 0b10 Robot/NC 115 | 60 30 10 15 Destroy Leader 86 | . 12 42 32 Successful Hack 7 | . 7 . . Disable Machine 45 | . 15 . 30 Destroy Structure 12 | . 9 1 2 Lose Combat Pursuer 30 | . . 15 15 Influence Decreases 623 | 60 117 204 242 Entered New Map 10 | . . 10 . Time Decay 483 | 60 117 184 122 Lost Part 130 | . . 10 120 Squads Dispatched 2 | . . 2 . Investigation 1 | . . 1 . Extermination . | . . . . Reinforcement 1 | . . 1 . Assault . | . . . . Garrison . | . . . . Intercept . | . . . . Searches Triggered . | . . . . Construction Impeded . | . . . . Haulers Reinforced . | . . . . Active Scanning Responses . | . . . . Cargo Convoy Interrupts . | . . . . Stealth | -11 -10 -9 -8 --------- Run | Yrd Mat Mat Mat Distress Signals 1 | . . . 1 Communications Jammed . | . . . . Distress Signals . | . . . . Times Spotted 31 | . 6 9 16 Peak Tracking Total 4 | . 3 3 4 Tactical Retreats 2 | . . 1 1 Traps | -11 -10 -9 -8 ------- Run | Yrd Mat Mat Mat Traps Triggered . | . . . . Indirectly . | . . . . Trap Hack Attempts . | . . . . Triggered . | . . . . Disarmed . | . . . . Reprogrammed . | . . . . Reused . | . . . . Traps Extracted . | . . . . Installed . | . . . . Triggered . | . . . . Machines | -11 -10 -9 -8 ---------- Run | Yrd Mat Mat Mat Machines Disabled 3 | . 1 . 2 Max in Single Turn 1 | . 1 . 1 Machines Repaired . | . . . . Machines Dismantled . | . . . . Machines Sabotaged . | . . . . Overloaded Fab Kills . | . . . . Hacking | -11 -10 -9 -8 --------- Run | Yrd Mat Mat Mat Machines Accessed 6 | . 3 2 1 Terminals 5 | . 3 1 1 Fabricators . | . . . . Repair Stations . | . . . . Recycling Units 1 | . . 1 . Scanalyzers . | . . . . Garrison Access . | . . . . Total Hacks 14 | . 8 5 1 Successful 6 | . 5 1 . Failed 8 | . 3 4 1 Catastrophic 1 | . 1 . . Database Lockouts . | . . . . Manual . | . . . . Terminals 12 | . 8 3 1 Fabricators . | . . . . Repair Stations . | . . . . Recycling Units 2 | . . 2 . Scanalyzers . | . . . . Garrison Access . | . . . . Terminal Hacks 5 | . 5 . . Branch Access Points 1 | . 1 . . Alert Level 2 | . 2 . . Locate Traps 1 | . 1 . . Zone Layout 1 | . 1 . . Fabricator Hacks . | . . . . Repair Station Hacks . | . . . . Recycling Unit Hacks 1 | . . 1 . Report Inventory 1 | . . 1 . Scanalyzer . | . . . . Garrison Access Hacks . | . . . . Unauthorized Hacks . | . . . . Terminals . | . . . . Fabricators . | . . . . Repair Stations . | . . . . Recycling Units . | . . . . Scanalyzers . | . . . . Garrison Access . | . . . . Data Cores Recovered 1 | . 1 . . Used . | . . . . Hacking Detections 4 | . 2 2 . Full Trace Events 2 | . 1 1 . Feedback Events . | . . . . Feedback Blocked . | . . . . Robot Schematics Acquired . | . . . . Robots Built . | . . . . Authchips . | . . . . Time . | . . . . Total Robot Build Rating . | . . . . Part Schematics Acquired . | . . . . Parts Built . | . . . . Authchips . | . . . . Time . | . . . . Total Part Build Rating . | . . . . Parts Repaired . | . . . . Time . | . . . . Parts Recycled . | . . . . Recycled Matter . | . . . . Retrieved Matter . | . . . . Retrieved Components . | . . . . Parts Scanalyzed . | . . . . Part Schematics Acquired . | . . . . Parts Damaged . | . . . . Bothacking | -11 -10 -9 -8 ------------ Run | Yrd Mat Mat Mat Used RIF Installer . | . . . . Robots Hacked . | . . . . Non-combat . | . . . . Combat . | . . . . Robot Hacks Applied . | . . . . Relay Couplers Released . | . . . . Fabnet Peak Effective % . | . . . . Robots Rewired . | . . . . Allies Hacked . | . . . . Hacks Repelled . | . . . . Allies | -11 -10 -9 -8 -------- Run | Yrd Mat Mat Mat Total Allies . | . . . . Largest Group . | . . . . Highest-Rated Group . | . . . . Highest-Rated Ally . | . . . . Total Orders . | . . . . Ally Attacks . | . . . . Total Damage . | . . . . Kills . | . . . . Allies Corrupted . | . . . . Allies Melted . | . . . . Intel | -11 -10 -9 -8 ------- Run | Yrd Mat Mat Mat Active Infowar (turns) 1167 | 11 312 517 327 Seismic 1167 | 11 312 517 327 Robot Analysis Total . | . . . . Derelict Logs Recovered . | . . . . Drone Launches . | . . . . Drone Recoveries . | . . . . Exploration | -11 -10 -9 -8 ------------- Run | Yrd Mat Mat Mat Turns Passed 2036 | 669 312 517 538 Spaces Moved 976 | 257 207 307 205 Core 33 | 31 . . 2 Treads . | . . . . Legs 943 | 226 207 307 203 Wheels . | . . . . Hover . | . . . . Flight . | . . . . Fastest Speed 50 | 50 120 120 120 Average Speed 137 | 111 120 141 182 Slowest Speed 300 | 120 120 190 300 Overloaded Moves . | . . . . Propulsion Burnouts . | . . . . Robots Hopped . | . . . . Potential Cave-ins . | . . . . Cave-ins Triggered . | . . . . Exploration Rate (%) 21 | 11 25 28 22 Regions Visited 3 Branch Regions . Pre-discovered Areas . | . . . . Known Exits Taken . | . . . . Unknown Exits Taken 3 | 1 1 1 . Scrap Searched . | . . . . Spaces Dug . | . . . . Terrain Destroyed 7 | . 7 . . Melee . | . . . . Projectile . | . . . . AOE 7 | . 7 . . Terrain Rammed . | . . . . Walls Destroyed . | . . . . Machines Disabled . | . . . . Actions | -11 -10 -9 -8 --------- Run | Yrd Mat Mat Mat Total 1476 | 601 238 343 294 Wait 339 | 310 14 4 11 Move 973 | 256 206 306 205 Hop . | . . . . Pick Up 27 | 9 2 4 12 Fast Attach . | . . . . Attach 20 | 7 . 4 9 Detach . | . . . . Swap 8 | . . 2 6 Drop . | . . . . Fire 109 | 19 16 23 51 Melee . | . . . . Ram . | . . . . Kick . | . . . . Crush . | . . . . Escape Stasis . | . . . . Rewire . | . . . . Trap . | . . . . Miscellaneous . | . . . . Route ------- -11/Scrapyard -10/Materials (discovered 2 exits: *Mat / *Min) -9/Materials -8/Materials History --------- Turn | Location | Event 8 | -11/Scrapyard | Discovered new exit (range 16) 670 | -11/Scrapyard | Entered Materials 676 | -10/Materials | Identified exit to Mines 680 | -10/Materials | Build established: Mutant 751 | -10/Materials | Discovered new exit (range 6) 982 | -10/Materials | Entered another Materials area 982 | -9/Materials | Evolved 2 slots: Utility x1, Weapon x1 1389 | -9/Materials | Build established: Tank 1455 | -9/Materials | Discovered new exit (range 15) 1499 | -9/Materials | Entered another Materials area 1499 | -8/Materials | Evolved 2 slots: Power x1, Weapon x1 1594 | -8/Materials | Lost 4 parts (1p1n2w) 1887 | -8/Materials | Core integrity fell below 50% 1897 | -8/Materials | Core integrity fell below 20% 1902 | -8/Materials | Lost 4 parts (1p1u2w) 2037 | -8/Materials | Destroyed by Y-45 Defender with Heavy Assault Rifle Last Messages --------------- Acquired 50 matter. U-05 Engineer works on Atomic Centrifuge. Atomic Centrifuge comes online. S-10 Pest destroyed. A-02 Transporter destroyed. Lgt. Nuclear Core destroyed. Atomic Centrifuge disabled. S-10 Pest destroyed. Atomic Centrifuge disabled. S-10 Pest destroyed. R-06 Scavenger collects Hvy. Hammer. R-06 Scavenger collects Weight Redist. System. R-06 Scavenger collects Hvy. Hammer. Aluminum Leg destroyed. Lgt. Deuterium Engine destroyed. Enh. Autogun destroyed. Critical hit (Burn: +37). Enh. Autogun destroyed. Carbon-fiber Leg destroyed. Critical hit (Burn: +37). Map ----- +----------------------------------------------------+ | ?????????????????????????????????????????????????? | | ?????????????????????????????????????????????????? | | ?????????????????????????????????????????????????? | | ?????????????????????????????????????????????????? | | ?????????????????????????????????????????????????? | | ?????????????????????????????????????????????????? | | ?????????????????????????????????????????????????? | | ?????????????????????????????????????????????????? | | ?????????????????????????????????????????????????? | | ?????????????????????????????????????????????????? | | ??????????????????????? == ?????????????????????? | | ?????????????????????# =[ ????????????????????? | | ?????????????????????# ????????????????????? | | ???### #?????????????# ????????????????????? | | ?? +?????????????# ????????????????????? | | ? #?????????????# ?????????????????????? | | #?????????????# ?????????????????????? | | ???????????# ?????????????????????? | | ###??????????????????# ?????????????????????? | | ?????????????????????# #?????????????????????? | | ?????????????????????# #?????????????????????? | | ?????????????????????# ####??????????????????? | | ##???????????????????# #* ?????????????????? | | +???????????????????# # """ ???????????????? | | ##???????????????????# # """ #??????????????? | | ?????????????????????# @ #! """ #??????????????? | | ???????????????????? # # ##?????????????? | | ???????????????????[ # # """ #?????????????? | | ##???????????????? ?# #[ """ #??????????????? | | ###+#############+### # """ #??????????????? | | g Y# #??????????????? | | / = g + """ #??????????????? | | *% % # """ #??????????????? | | ######### " / # """ #??????????????? | | #####????# "" = #/ #??????????????? | | #????# ""[% ########??????????????? | | #????# *%= #?????????????????????? | | ###### ########?????????????????????? | | =! # !# #????????????????????????????? | | ! #" # "" #????????????????????????????? | | ! #" # """ #????????????????????????????? | | #" #* #????????????????????????????? | | #T + #????????????????????????????? | | #" # #????????????????????????????? | | #####" # #????????????????????????????? | | ????#" ###+########????????????????????????????? | | ????# # #????????????????????????????????? | | ????######""" #????????????????????????????????? | | ?????????#"R =#????????????????????????????????? | | ?????????#""" #????????????????????????????????? | +----------------------------------------------------+ Best States ------------- Heat Dissipation 31 Energy Generation 23 Energy Capacity 200 Matter Stores 300 Matter Capacity 300 Sight Range 16 Terrain Scan Density 10 Propulsion Shielding 33 Evasion (%) 55 Defensive Hacking 10 Item Schematics ----------------- None Robot Schematics ------------------ None Fabricated ------------ Nothing Repaired ---------- Nothing Alien Tech Used ----------------- None Achievements -------------- None Challenges ------------ None Game ------ Seed ShadingTrapNullifier Manual? 0 Play Time 00:13:38 Cumulative 7.2 hours Start 2025.10.05 @ 22:20:10 End 2025.10.05 @ 22:30:28 Sessions 1 Manual Loads 0 Difficulty Rogue Special Mode None Game No. 24 Rogue 24 Adventurer 0 Explorer 0 Win Type - Total 0 Types 0/0/0/0/0/0/0/0/0/0 Lore% 10 Gallery% 14 Achievement% 12 Wizard Run 0 Options --------- Layout 1 ASCII 0 Keyboard 0 Movement Numpad Keybinds 0 Fullscreen 2 Font 24/Smallcaps Map View 50x35 Zoom Use 0% Tactical HUD 0 Map Filters NONE Filters NONE Steam 1 RUN: 10f54db6-8ee5-4e8f-b817-a75ea5293806